[Event "Titled Tuesday Blitz October 5 2021"]
[White "Koellner, Ruben Gideon"]
[Black "Sadhwani, Raunak"]
[WhiteFideId "12993093"]
[BlackFideId "35093487"]
[WhiteElo "2559"]
[BlackElo "2517"]
[Result "0-1"]
[Round "04"]
[TimeControl "180+1"]
[Date "2021.10.05"]
[WhiteClock "0:00:02"]
[BlackClock "0:00:18"]

1. d4 {[%clk 0:03:00]}  d6 {[%clk 0:03:00]} 2. Nf3 {[%clk 0:03:00]}  g6 {[%clk 0:02:59]} 3. Nbd2 {[%clk 0:03:00]}  Bg7 {[%clk 0:02:58]} 4. e4 {[%clk 0:03:00]}  e5 {[%clk 0:02:57]} 5. dxe5 {[%clk 0:03:00]}  dxe5 {[%clk 0:02:58]} 6. Bc4 {[%clk 0:02:59]}  Nc6 {[%clk 0:02:56]} 7. c3 {[%clk 0:02:58]}  Nf6 {[%clk 0:02:56]} 8. O-O {[%clk 0:02:58]}  O-O {[%clk 0:02:57]} 9. a4 {[%clk 0:02:58]}  a6 {[%clk 0:02:56]} 10. Qe2 {[%clk 0:02:57]}  Nh5 {[%clk 0:02:56]} 11. g3 {[%clk 0:02:57]}  Bg4 {[%clk 0:02:53]} 12. Re1 {[%clk 0:02:47]}  Kh8 {[%clk 0:02:52]} 13. Nf1 {[%clk 0:02:42]}  f5 {[%clk 0:02:41]} 14. Ne3 {[%clk 0:02:41]}  Bxf3 {[%clk 0:02:41]} 15. Qxf3 {[%clk 0:02:40]}  f4 {[%clk 0:02:42]} 16. Nf5 {[%clk 0:02:22]}  fxg3 {[%clk 0:02:42]} 17. hxg3 {[%clk 0:02:19]}  Qf6 {[%clk 0:02:35]} 18. Qg4 {[%clk 0:02:02]}  gxf5 {[%clk 0:02:33]} 19. Qxh5 {[%clk 0:01:59]}  f4 {[%clk 0:02:33]} 20. Kg2 {[%clk 0:01:48]}  fxg3 {[%clk 0:02:30]} 21. f3 {[%clk 0:01:46]}  Na5 {[%clk 0:01:45]} 22. Ba2 {[%clk 0:01:44]}  Qb6 {[%clk 0:01:44]} 23. Re2 {[%clk 0:01:32]}  Rf6 {[%clk 0:00:46]} 24. Be3 {[%clk 0:01:28]}  Qd6 {[%clk 0:00:45]} 25. Rh1 {[%clk 0:01:17]}  h6 {[%clk 0:00:45]} 26. Bg5 {[%clk 0:01:13]}  Nc6 {[%clk 0:00:36]} 27. Rd2 {[%clk 0:00:59]}  Qf8 {[%clk 0:00:33]} 28. Bxf6 {[%clk 0:00:45]}  Qxf6 {[%clk 0:00:34]} 29. Rd7 {[%clk 0:00:39]}  Rf8 {[%clk 0:00:29]} 30. Rf7 {[%clk 0:00:33]}  Qd6 {[%clk 0:00:20]} 31. Rxf8+ {[%clk 0:00:30]}  Qxf8 {[%clk 0:00:21]} 32. Qf7 {[%clk 0:00:24]}  Qd8 {[%clk 0:00:21]} 33. Rd1 {[%clk 0:00:20]}  Qf8 {[%clk 0:00:17]} 34. Qxf8+ {[%clk 0:00:18]}  Bxf8 {[%clk 0:00:18]} 35. Rd7 {[%clk 0:00:18]}  Bd6 {[%clk 0:00:18]} 36. Bd5 {[%clk 0:00:15]}  Ne7 {[%clk 0:00:18]} 37. Bxb7 {[%clk 0:00:13]}  a5 {[%clk 0:00:19]} 38. b4 {[%clk 0:00:12]}  axb4 {[%clk 0:00:19]} 39. cxb4 {[%clk 0:00:13]}  Ng6 {[%clk 0:00:18]} 40. a5 {[%clk 0:00:11]}  Bxb4 {[%clk 0:00:17]} 41. a6 {[%clk 0:00:11]}  Be1 {[%clk 0:00:17]} 42. Rd1 {[%clk 0:00:05]}  Nf4+ {[%clk 0:00:17]} 43. Kf1 {[%clk 0:00:03]}  Bf2 {[%clk 0:00:18]} 44. a7 {[%clk 0:00:01]}  Bxa7 {[%clk 0:00:18]} 45. Rd8+ {[%clk 0:00:02]}  Kg7 {[%clk 0:00:18]} 46. Rd7+ {[%clk 0:00:03]}  Kf6 {[%clk 0:00:18]} 47. Rxc7 {[%clk 0:00:02]}  g2+ {[%clk 0:00:18]} 0-1


[Site "https://www.chess.com"]

[Event "Titled Tuesday Blitz October 5 2021"]
[White "Kovalchuk94"]
[Black "Ogloblin, Nikolay"]
[BlackFideId "4139658"]
[WhiteElo "2680"]
[BlackElo "2261"]
[Result "1-0"]
[Round "04"]
[TimeControl "180+1"]
[Date "2021.10.05"]
[WhiteClock "0:00:05"]
[BlackClock "0:01:47"]

1. d4 {[%clk 0:03:00]}  Nf6 {[%clk 0:02:59]} 2. c4 {[%clk 0:03:00]}  e6 {[%clk 0:03:00]} 3. Nf3 {[%clk 0:03:00]}  b6 {[%clk 0:02:59]} 4. g3 {[%clk 0:02:59]}  Bb7 {[%clk 0:02:58]} 5. Bg2 {[%clk 0:02:59]}  Bb4+ {[%clk 0:02:58]} 6. Bd2 {[%clk 0:02:55]}  a5 {[%clk 0:02:58]} 7. Nc3 {[%clk 0:02:53]}  O-O {[%clk 0:02:58]} 8. O-O {[%clk 0:02:53]}  d6 {[%clk 0:02:59]} 9. Qc2 {[%clk 0:02:46]}  Nbd7 {[%clk 0:02:59]} 10. Rfe1 {[%clk 0:02:42]}  Bxc3 {[%clk 0:02:58]} 11. Bxc3 {[%clk 0:02:42]}  Be4 {[%clk 0:02:58]} 12. Qd2 {[%clk 0:02:35]}  Qb8 {[%clk 0:02:58]} 13. b3 {[%clk 0:02:28]}  Qb7 {[%clk 0:02:59]} 14. a3 {[%clk 0:02:21]}  Rfe8 {[%clk 0:02:58]} 15. b4 {[%clk 0:02:20]}  axb4 {[%clk 0:02:58]} 16. axb4 {[%clk 0:02:21]}  b5 {[%clk 0:02:58]} 17. c5 {[%clk 0:02:16]}  Nd5 {[%clk 0:02:58]} 18. Bf1 {[%clk 0:01:59]}  Bxf3 {[%clk 0:02:53]} 19. exf3 {[%clk 0:01:58]}  N7f6 {[%clk 0:02:48]} 20. f4 {[%clk 0:01:50]}  Nxc3 {[%clk 0:02:39]} 21. Qxc3 {[%clk 0:01:50]}  Nd5 {[%clk 0:02:38]} 22. Qd2 {[%clk 0:01:48]}  dxc5 {[%clk 0:02:38]} 23. dxc5 {[%clk 0:01:43]}  c6 {[%clk 0:02:38]} 24. Bg2 {[%clk 0:01:40]}  Rxa1 {[%clk 0:02:37]} 25. Rxa1 {[%clk 0:01:40]}  Ra8 {[%clk 0:02:38]} 26. Ra5 {[%clk 0:01:21]}  Rxa5 {[%clk 0:02:35]} 27. bxa5 {[%clk 0:01:22]}  b4 {[%clk 0:02:34]} 28. Bxd5 {[%clk 0:01:16]}  exd5 {[%clk 0:02:33]} 29. Qe2 {[%clk 0:01:08]}  Kf8 {[%clk 0:02:22]} 30. a6 {[%clk 0:01:07]}  Qa7 {[%clk 0:02:22]} 31. Qa2 {[%clk 0:01:07]}  Ke7 {[%clk 0:02:18]} 32. Kg2 {[%clk 0:00:50]}  Kd7 {[%clk 0:02:17]} 33. Qa4 {[%clk 0:00:42]}  b3 {[%clk 0:02:16]} 34. Qxb3 {[%clk 0:00:35]}  Qxa6 {[%clk 0:02:16]} 35. Qb8 {[%clk 0:00:31]}  Qc8 {[%clk 0:02:15]} 36. Qe5 {[%clk 0:00:27]}  Qf8 {[%clk 0:02:11]} 37. Qf5+ {[%clk 0:00:12]}  Kc7 {[%clk 0:02:11]} 38. Qe5+ {[%clk 0:00:12]}  Kc8 {[%clk 0:02:06]} 39. Qf5+ {[%clk 0:00:12]}  Kd8 {[%clk 0:02:06]} 40. Qxh7 {[%clk 0:00:06]}  Qxc5 {[%clk 0:02:05]} 41. Qg8+ {[%clk 0:00:06]}  Ke7 {[%clk 0:02:04]} 42. Qxg7 {[%clk 0:00:06]}  d4 {[%clk 0:02:04]} 43. Qe5+ {[%clk 0:00:04]}  Qxe5 {[%clk 0:02:04]} 44. fxe5 {[%clk 0:00:05]}  c5 {[%clk 0:02:03]} 45. f4 {[%clk 0:00:04]}  c4 {[%clk 0:02:01]} 46. Kf2 {[%clk 0:00:04]}  c3 {[%clk 0:01:58]} 47. Ke2 {[%clk 0:00:05]}  c2 {[%clk 0:01:58]} 48. Kd2 {[%clk 0:00:05]}  d3 {[%clk 0:01:58]} 49. f5 {[%clk 0:00:05]}  Kd7 {[%clk 0:01:51]} 50. g4 {[%clk 0:00:05]}  Kc6 {[%clk 0:01:51]} 51. g5 {[%clk 0:00:03]}  Kd5 {[%clk 0:01:51]} 52. g6 {[%clk 0:00:04]}  fxg6 {[%clk 0:01:49]} 53. fxg6 {[%clk 0:00:05]}  Kc4 {[%clk 0:01:46]} 54. g7 {[%clk 0:00:05]}  Kb3 {[%clk 0:01:46]} 55. g8=Q+ {[%clk 0:00:05]}  Kb2 {[%clk 0:01:47]} 56. Qb8+ {[%clk 0:00:05]} 1-0


[Site "https://www.chess.com"]

[Event "Titled Tuesday Blitz October 5 2021"]
[White "Le, Tuan Minh"]
[Black "Wagner, Dennis"]
[WhiteFideId "12401153"]
[BlackFideId "24650684"]
[WhiteElo "2450"]
[BlackElo "2355"]
[Result "1-0"]
[Round "04"]
[TimeControl "180+1"]
[Date "2021.10.05"]
[WhiteClock "0:00:29"]
[BlackClock "0:00:04"]

1. d4 {[%clk 0:03:00]}  Nf6 {[%clk 0:02:58]} 2. Nf3 {[%clk 0:02:58]}  d5 {[%clk 0:02:58]} 3. Bf4 {[%clk 0:02:58]}  Bf5 {[%clk 0:02:57]} 4. e3 {[%clk 0:02:58]}  e6 {[%clk 0:02:57]} 5. c4 {[%clk 0:02:57]}  Bxb1 {[%clk 0:02:49]} 6. Qxb1 {[%clk 0:02:58]}  Bb4+ {[%clk 0:02:48]} 7. Kd1 {[%clk 0:02:58]}  Bd6 {[%clk 0:02:45]} 8. Bg5 {[%clk 0:02:52]}  c6 {[%clk 0:02:41]} 9. Bd3 {[%clk 0:02:51]}  Nbd7 {[%clk 0:02:41]} 10. Ke2 {[%clk 0:02:51]}  h6 {[%clk 0:02:40]} 11. Bh4 {[%clk 0:02:51]}  Qe7 {[%clk 0:02:35]} 12. Rd1 {[%clk 0:02:43]}  O-O {[%clk 0:02:14]} 13. Kf1 {[%clk 0:02:41]}  e5 {[%clk 0:02:05]} 14. dxe5 {[%clk 0:02:37]}  Nxe5 {[%clk 0:02:06]} 15. cxd5 {[%clk 0:02:37]}  cxd5 {[%clk 0:02:02]} 16. Be2 {[%clk 0:02:27]}  Rac8 {[%clk 0:01:29]} 17. Kg1 {[%clk 0:01:40]}  Nxf3+ {[%clk 0:01:19]} 18. Bxf3 {[%clk 0:01:34]}  g5 {[%clk 0:01:19]} 19. Bg3 {[%clk 0:01:33]}  Bxg3 {[%clk 0:01:19]} 20. hxg3 {[%clk 0:01:33]}  Qe5 {[%clk 0:01:19]} 21. Rd4 {[%clk 0:01:32]}  h5 {[%clk 0:00:59]} 22. Qd1 {[%clk 0:01:30]}  Rc4 {[%clk 0:00:27]} 23. Bxh5 {[%clk 0:01:21]}  Rxd4 {[%clk 0:00:27]} 24. exd4 {[%clk 0:01:22]}  Qf5 {[%clk 0:00:28]} 25. Be2 {[%clk 0:01:21]}  Ne4 {[%clk 0:00:27]} 26. Bf3 {[%clk 0:01:18]}  g4 {[%clk 0:00:20]} 27. Bxe4 {[%clk 0:01:18]}  dxe4 {[%clk 0:00:21]} 28. Qe2 {[%clk 0:01:08]}  Kg7 {[%clk 0:00:21]} 29. Re1 {[%clk 0:01:07]}  Re8 {[%clk 0:00:21]} 30. Qe3 {[%clk 0:01:05]}  Qh7 {[%clk 0:00:16]} 31. Qf4 {[%clk 0:01:01]}  Qg6 {[%clk 0:00:11]} 32. d5 {[%clk 0:01:00]}  Rh8 {[%clk 0:00:06]} 33. Rxe4 {[%clk 0:00:38]}  f5 {[%clk 0:00:04]} 34. Re7+ {[%clk 0:00:37]}  Kf8 {[%clk 0:00:05]} 35. Qc7 {[%clk 0:00:29]}  Qh5 {[%clk 0:00:04]} 36. Qd8+ {[%clk 0:00:29]} 1-0


[Site "https://www.chess.com"]

[Event "Titled Tuesday Blitz October 5 2021"]
[White "Lewtak, Damian"]
[Black "Ladan, Nicholas"]
[WhiteFideId "1141724"]
[BlackFideId "30918855"]
[WhiteElo "2203"]
[BlackElo "2392"]
[Result "0-1"]
[Round "04"]
[TimeControl "180+1"]
[Date "2021.10.05"]
[WhiteClock "0:00:19"]
[BlackClock "0:01:27"]

1. d4 {[%clk 0:03:00]}  d5 {[%clk 0:02:59]} 2. c3 {[%clk 0:03:01]}  Nf6 {[%clk 0:02:59]} 3. Bf4 {[%clk 0:03:00]}  c5 {[%clk 0:02:58]} 4. e3 {[%clk 0:03:00]}  Nc6 {[%clk 0:02:58]} 5. h3 {[%clk 0:02:59]}  Qb6 {[%clk 0:02:56]} 6. Qb3 {[%clk 0:02:57]}  c4 {[%clk 0:02:55]} 7. Qc2 {[%clk 0:02:55]}  Bf5 {[%clk 0:02:53]} 8. Qc1 {[%clk 0:02:55]}  e6 {[%clk 0:02:53]} 9. Nd2 {[%clk 0:02:54]}  h6 {[%clk 0:02:50]} 10. Ngf3 {[%clk 0:02:54]}  Be7 {[%clk 0:02:50]} 11. Be2 {[%clk 0:02:52]}  O-O {[%clk 0:02:49]} 12. b3 {[%clk 0:02:52]}  cxb3 {[%clk 0:02:42]} 13. axb3 {[%clk 0:02:53]}  a5 {[%clk 0:02:42]} 14. O-O {[%clk 0:02:45]}  Rfc8 {[%clk 0:02:42]} 15. c4 {[%clk 0:02:45]}  Nb4 {[%clk 0:02:35]} 16. c5 {[%clk 0:02:43]}  Qd8 {[%clk 0:02:28]} 17. Qb2 {[%clk 0:02:42]}  b6 {[%clk 0:02:25]} 18. cxb6 {[%clk 0:02:25]}  Rc2 {[%clk 0:02:24]} 19. Qa3 {[%clk 0:02:25]}  Qxb6 {[%clk 0:02:10]} 20. Qa4 {[%clk 0:01:58]}  Ne4 {[%clk 0:02:10]} 21. Qd7 {[%clk 0:01:22]}  Bf8 {[%clk 0:02:10]} 22. Rac1 {[%clk 0:00:55]}  Nxd2 {[%clk 0:02:05]} 23. Rxc2 {[%clk 0:00:54]}  Nxf3+ {[%clk 0:02:05]} 24. Bxf3 {[%clk 0:00:51]}  Nxc2 {[%clk 0:02:06]} 25. Bh5 {[%clk 0:00:42]}  g6 {[%clk 0:01:58]} 26. Be2 {[%clk 0:00:38]}  Qxb3 {[%clk 0:01:55]} 27. Qc6 {[%clk 0:00:32]}  Ra7 {[%clk 0:01:45]} 28. Qc8 {[%clk 0:00:27]}  Qb7 {[%clk 0:01:42]} 29. Qxb7 {[%clk 0:00:26]}  Rxb7 {[%clk 0:01:42]} 30. g4 {[%clk 0:00:27]}  g5 {[%clk 0:01:36]} 31. Be5 {[%clk 0:00:19]}  Bg6 {[%clk 0:01:30]} 32. f4 {[%clk 0:00:19]}  gxf4 {[%clk 0:01:28]} 33. exf4 {[%clk 0:00:19]}  Be4 {[%clk 0:01:27]} 0-1


[Site "https://www.chess.com"]

[Event "Titled Tuesday Blitz October 5 2021"]
[White "Maghsoodloo, Parham"]
[Black "Erdogmus, Yagiz Kaan"]
[WhiteFideId "12539929"]
[BlackFideId "44599790"]
[WhiteElo "2601"]
[BlackElo "1783"]
[Result "1-0"]
[Round "04"]
[TimeControl "180+1"]
[Date "2021.10.05"]
[WhiteClock "0:02:39"]
[BlackClock "0:02:23"]

1. e4 {[%clk 0:02:46]}  c5 {[%clk 0:02:59]} 2. Nf3 {[%clk 0:02:41]}  e6 {[%clk 0:02:59]} 3. d4 {[%clk 0:02:41]}  cxd4 {[%clk 0:03:00]} 4. Nxd4 {[%clk 0:02:42]}  Nc6 {[%clk 0:03:00]} 5. Nc3 {[%clk 0:02:43]}  Qc7 {[%clk 0:03:00]} 6. g3 {[%clk 0:02:44]}  Nf6 {[%clk 0:02:54]} 7. Bg2 {[%clk 0:02:44]}  Nxd4 {[%clk 0:02:55]} 8. Qxd4 {[%clk 0:02:44]}  Bc5 {[%clk 0:02:55]} 9. Bf4 {[%clk 0:02:45]}  d6 {[%clk 0:02:52]} 10. Qd3 {[%clk 0:02:44]}  a6 {[%clk 0:02:49]} 11. O-O {[%clk 0:02:42]}  h6 {[%clk 0:02:44]} 12. Rad1 {[%clk 0:02:37]}  e5 {[%clk 0:02:44]} 13. Be3 {[%clk 0:02:38]}  Bxe3 {[%clk 0:02:41]} 14. fxe3 {[%clk 0:02:38]}  Be6 {[%clk 0:02:31]} 15. Qxd6 {[%clk 0:02:38]}  Qxd6 {[%clk 0:02:31]} 16. Rxd6 {[%clk 0:02:39]}  Ke7 {[%clk 0:02:31]} 17. Rb6 {[%clk 0:02:39]}  Rhb8 {[%clk 0:02:29]} 18. Nd5+ {[%clk 0:02:39]}  Bxd5 {[%clk 0:02:28]} 19. exd5 {[%clk 0:02:40]}  Nd7 {[%clk 0:02:27]} 20. d6+ {[%clk 0:02:39]}  Ke6 {[%clk 0:02:27]} 21. Bh3+ {[%clk 0:02:39]}  Kd5 {[%clk 0:02:21]} 22. Bxd7 {[%clk 0:02:39]}  Kc5 {[%clk 0:02:22]} 23. Rb3 {[%clk 0:02:38]}  Kxd6 {[%clk 0:02:23]} 24. Rxf7 {[%clk 0:02:39]}  b5 {[%clk 0:02:23]} 25. Rd3+ {[%clk 0:02:38]}  Kc5 {[%clk 0:02:23]} 26. Rc3+ {[%clk 0:02:39]} 1-0


[Site "https://www.chess.com"]

[Event "Titled Tuesday Blitz October 5 2021"]
[White "Maly, Alexey"]
[Black "Sydoryka, Vladyslav"]
[WhiteFideId "14103184"]
[BlackFideId "14145928"]
[WhiteElo "2294"]
[BlackElo "2282"]
[Result "1-0"]
[Round "04"]
[TimeControl "180+1"]
[Date "2021.10.05"]
[WhiteClock "0:01:05"]
[BlackClock "0:00:01"]

1. d4 {[%clk 0:03:00]}  Nf6 {[%clk 0:03:00]} 2. c4 {[%clk 0:03:01]}  e6 {[%clk 0:03:00]} 3. Nf3 {[%clk 0:03:01]}  d5 {[%clk 0:03:00]} 4. e3 {[%clk 0:03:02]}  c5 {[%clk 0:02:54]} 5. dxc5 {[%clk 0:03:03]}  Bxc5 {[%clk 0:02:53]} 6. a3 {[%clk 0:03:03]}  a5 {[%clk 0:02:45]} 7. Nc3 {[%clk 0:03:03]}  dxc4 {[%clk 0:01:59]} 8. Qxd8+ {[%clk 0:03:01]}  Kxd8 {[%clk 0:02:00]} 9. Bxc4 {[%clk 0:03:01]}  Ke7 {[%clk 0:02:00]} 10. Ke2 {[%clk 0:02:59]}  Nbd7 {[%clk 0:01:55]} 11. b3 {[%clk 0:02:57]}  b6 {[%clk 0:01:55]} 12. Na4 {[%clk 0:02:54]}  Bd6 {[%clk 0:01:52]} 13. Bb2 {[%clk 0:02:53]}  Bb7 {[%clk 0:01:35]} 14. Nd4 {[%clk 0:02:48]}  Ne4 {[%clk 0:01:25]} 15. Nb5 {[%clk 0:02:40]}  Nec5 {[%clk 0:01:17]} 16. Nxd6 {[%clk 0:02:35]}  Kxd6 {[%clk 0:01:16]} 17. Rhd1+ {[%clk 0:02:30]}  Ke7 {[%clk 0:01:16]} 18. Nxc5 {[%clk 0:02:26]}  Nxc5 {[%clk 0:01:17]} 19. Bxg7 {[%clk 0:02:22]}  Rhg8 {[%clk 0:01:17]} 20. Be5 {[%clk 0:02:22]}  Bxg2 {[%clk 0:00:18]} 21. Bd6+ {[%clk 0:02:21]}  Kf6 {[%clk 0:00:17]} 22. Bc7 {[%clk 0:01:54]}  b5 {[%clk 0:00:14]} 23. Bxb5 {[%clk 0:01:52]}  Nxb3 {[%clk 0:00:11]} 24. Rab1 {[%clk 0:01:53]}  a4 {[%clk 0:00:10]} 25. f3 {[%clk 0:01:41]}  Bh3 {[%clk 0:00:06]} 26. Bg3 {[%clk 0:01:41]}  Rgc8 {[%clk 0:00:04]} 27. Rb2 {[%clk 0:01:37]}  Ra5 {[%clk 0:00:03]} 28. Bh4+ {[%clk 0:01:25]}  Kg7 {[%clk 0:00:01]} 29. Bd3 {[%clk 0:01:08]}  Kf8 {[%clk 0:00:01]} 30. Bf6 {[%clk 0:01:05]}  Bf5 {[%clk 0:00:01]} 31. e4 {[%clk 0:01:05]}  Bg6 {[%clk 0:00:01]} 32. Rc2 {[%clk 0:01:04]}  Rxc2+ {[%clk 0:00:01]} 33. Bxc2 {[%clk 0:01:05]} 1-0


[Site "https://www.chess.com"]

[Event "Titled Tuesday Blitz October 5 2021"]
[White "Martinovici, Ilia"]
[Black "Mujumdar, Sameer"]
[WhiteFideId "13907034"]
[BlackFideId "2029707"]
[WhiteElo "2303"]
[BlackElo "2104"]
[Result "1-0"]
[Round "04"]
[TimeControl "180+1"]
[Date "2021.10.05"]
[WhiteClock "0:01:03"]
[BlackClock "0:00:39"]

1. d4 {[%clk 0:03:00]}  Nf6 {[%clk 0:02:54]} 2. c4 {[%clk 0:03:00]}  e6 {[%clk 0:02:54]} 3. Nc3 {[%clk 0:03:01]}  Bb4 {[%clk 0:02:52]} 4. Qc2 {[%clk 0:03:00]}  b6 {[%clk 0:02:47]} 5. e4 {[%clk 0:02:58]}  Bxc3+ {[%clk 0:02:46]} 6. bxc3 {[%clk 0:02:57]}  d6 {[%clk 0:02:46]} 7. Bd3 {[%clk 0:02:57]}  e5 {[%clk 0:02:45]} 8. Ne2 {[%clk 0:02:57]}  O-O {[%clk 0:02:43]} 9. O-O {[%clk 0:02:58]}  Nc6 {[%clk 0:02:41]} 10. a3 {[%clk 0:02:56]}  Na5 {[%clk 0:02:38]} 11. f4 {[%clk 0:02:57]}  Nd7 {[%clk 0:02:33]} 12. Ng3 {[%clk 0:02:55]}  Ba6 {[%clk 0:02:32]} 13. Qe2 {[%clk 0:02:54]}  c5 {[%clk 0:02:29]} 14. fxe5 {[%clk 0:02:52]}  cxd4 {[%clk 0:02:26]} 15. exd6 {[%clk 0:02:37]}  Ne5 {[%clk 0:02:22]} 16. Nf5 {[%clk 0:02:20]}  dxc3 {[%clk 0:02:08]} 17. Bf4 {[%clk 0:01:55]}  Nxd3 {[%clk 0:01:59]} 18. Qxd3 {[%clk 0:01:56]}  f6 {[%clk 0:01:47]} 19. Qg3 {[%clk 0:01:47]}  Qd7 {[%clk 0:01:46]} 20. Bh6 {[%clk 0:01:34]}  Rf7 {[%clk 0:01:44]} 21. e5 {[%clk 0:01:27]}  Bxc4 {[%clk 0:01:37]} 22. exf6 {[%clk 0:01:20]}  Bxf1 {[%clk 0:01:25]} 23. Rxf1 {[%clk 0:01:07]}  Rxf6 {[%clk 0:00:49]} 24. Ne7+ {[%clk 0:01:06]}  Qxe7 {[%clk 0:00:44]} 25. dxe7 {[%clk 0:01:07]}  Rg6 {[%clk 0:00:39]} 26. Qf3 {[%clk 0:01:03]} 1-0


[Site "https://www.chess.com"]

[Event "Titled Tuesday Blitz October 5 2021"]
[White "Mikhalevski, Victor"]
[Black "Garv Gaur"]
[WhiteFideId "2801914"]
[BlackFideId "45030839"]
[WhiteElo "2577"]
[BlackElo "1950"]
[Result "1-0"]
[Round "04"]
[TimeControl "180+1"]
[Date "2021.10.05"]
[WhiteClock "0:00:25"]
[BlackClock "0:00:06"]

1. Nf3 {[%clk 0:03:00]}  d5 {[%clk 0:02:59]} 2. g3 {[%clk 0:03:00]}  Nf6 {[%clk 0:02:59]} 3. Bg2 {[%clk 0:03:00]}  c5 {[%clk 0:02:59]} 4. O-O {[%clk 0:03:00]}  Nc6 {[%clk 0:02:59]} 5. c4 {[%clk 0:02:58]}  e6 {[%clk 0:02:59]} 6. b3 {[%clk 0:02:56]}  Be7 {[%clk 0:02:58]} 7. e3 {[%clk 0:02:56]}  O-O {[%clk 0:02:58]} 8. Re1 {[%clk 0:02:51]}  b6 {[%clk 0:02:58]} 9. Nc3 {[%clk 0:02:51]}  Bb7 {[%clk 0:02:58]} 10. cxd5 {[%clk 0:02:50]}  exd5 {[%clk 0:02:58]} 11. d4 {[%clk 0:02:50]}  Ne4 {[%clk 0:02:54]} 12. Bb2 {[%clk 0:02:49]}  cxd4 {[%clk 0:02:44]} 13. exd4 {[%clk 0:02:37]}  Bb4 {[%clk 0:02:36]} 14. Re3 {[%clk 0:02:37]}  Bxc3 {[%clk 0:02:30]} 15. Bxc3 {[%clk 0:02:36]}  Ne7 {[%clk 0:02:29]} 16. Bb4 {[%clk 0:02:32]}  Nf5 {[%clk 0:02:26]} 17. Re2 {[%clk 0:02:27]}  Re8 {[%clk 0:02:26]} 18. Rc1 {[%clk 0:02:25]}  Rc8 {[%clk 0:02:21]} 19. Rxc8 {[%clk 0:02:21]}  Qxc8 {[%clk 0:02:22]} 20. Rc2 {[%clk 0:02:21]}  Qd8 {[%clk 0:02:09]} 21. Qc1 {[%clk 0:02:18]}  Qf6 {[%clk 0:01:57]} 22. Qb2 {[%clk 0:01:54]}  a5 {[%clk 0:01:41]} 23. Ba3 {[%clk 0:01:51]}  g5 {[%clk 0:01:36]} 24. Rc7 {[%clk 0:01:49]}  Bc8 {[%clk 0:01:27]} 25. h3 {[%clk 0:01:40]}  Nfxg3 {[%clk 0:01:16]} 26. fxg3 {[%clk 0:01:38]}  Nxg3 {[%clk 0:01:17]} 27. Qf2 {[%clk 0:01:33]}  Ne2+ {[%clk 0:01:16]} 28. Kh1 {[%clk 0:01:28]}  Qf4 {[%clk 0:01:12]} 29. Rxc8 {[%clk 0:01:20]}  Rxc8 {[%clk 0:00:34]} 30. Qxe2 {[%clk 0:01:20]}  b5 {[%clk 0:00:34]} 31. Bc5 {[%clk 0:01:18]}  a4 {[%clk 0:00:31]} 32. Qxb5 {[%clk 0:01:12]}  Qc1+ {[%clk 0:00:28]} 33. Qf1 {[%clk 0:01:08]}  Qe3 {[%clk 0:00:28]} 34. bxa4 {[%clk 0:01:05]}  Rb8 {[%clk 0:00:27]} 35. a5 {[%clk 0:01:04]}  Rb2 {[%clk 0:00:26]} 36. a6 {[%clk 0:01:03]}  Rf2 {[%clk 0:00:26]} 37. Qd1 {[%clk 0:00:56]}  Rxa2 {[%clk 0:00:17]} 38. a7 {[%clk 0:00:56]}  Qf2 {[%clk 0:00:17]} 39. Qg1 {[%clk 0:00:55]}  Qb2 {[%clk 0:00:15]} 40. Nxg5 {[%clk 0:00:52]}  Ra1 {[%clk 0:00:15]} 41. Bxd5 {[%clk 0:00:41]}  Rxg1+ {[%clk 0:00:13]} 42. Kxg1 {[%clk 0:00:41]}  Qc1+ {[%clk 0:00:13]} 43. Kf2 {[%clk 0:00:39]}  Qd2+ {[%clk 0:00:12]} 44. Kf3 {[%clk 0:00:37]}  Qd3+ {[%clk 0:00:10]} 45. Kf4 {[%clk 0:00:36]}  Qd2+ {[%clk 0:00:10]} 46. Kf5 {[%clk 0:00:34]}  Qc2+ {[%clk 0:00:06]} 47. Ne4 {[%clk 0:00:31]}  Qa4 {[%clk 0:00:05]} 48. a8=Q+ {[%clk 0:00:30]}  Qxa8 {[%clk 0:00:05]} 49. Bxa8 {[%clk 0:00:30]}  Kg7 {[%clk 0:00:06]} 50. d5 {[%clk 0:00:29]}  h5 {[%clk 0:00:04]} 51. d6 {[%clk 0:00:28]}  h4 {[%clk 0:00:04]} 52. d7 {[%clk 0:00:28]}  f6 {[%clk 0:00:05]} 53. d8=Q {[%clk 0:00:27]}  Kh7 {[%clk 0:00:06]} 54. Qe7+ {[%clk 0:00:26]}  Kh8 {[%clk 0:00:06]} 55. Kg6 {[%clk 0:00:25]}  f5 {[%clk 0:00:06]} 56. Qg7# {[%clk 0:00:25]} 1-0


[Site "https://www.chess.com"]

[Event "Titled Tuesday Blitz October 5 2021"]
[White "Mortazavi, Ali"]
[Black "Pichot, Alan"]
[WhiteFideId "401323"]
[BlackFideId "110973"]
[WhiteElo "2339"]
[BlackElo "2600"]
[Result "0-1"]
[Round "04"]
[TimeControl "180+1"]
[Date "2021.10.05"]
[WhiteClock "0:00:05"]
[BlackClock "0:00:30"]

1. e4 {[%clk 0:03:00]}  e5 {[%clk 0:02:58]} 2. Bc4 {[%clk 0:03:00]}  Nc6 {[%clk 0:02:58]} 3. d3 {[%clk 0:03:01]}  Nf6 {[%clk 0:02:58]} 4. Nf3 {[%clk 0:03:01]}  Bc5 {[%clk 0:02:58]} 5. c3 {[%clk 0:03:02]}  d6 {[%clk 0:02:58]} 6. Bb3 {[%clk 0:03:02]}  Bb6 {[%clk 0:02:58]} 7. Nbd2 {[%clk 0:03:03]}  Ne7 {[%clk 0:02:57]} 8. h3 {[%clk 0:03:02]}  Ng6 {[%clk 0:02:57]} 9. Nf1 {[%clk 0:03:03]}  h6 {[%clk 0:02:57]} 10. Ng3 {[%clk 0:03:01]}  O-O {[%clk 0:02:58]} 11. O-O {[%clk 0:03:02]}  Be6 {[%clk 0:02:58]} 12. Re1 {[%clk 0:02:53]}  Qd7 {[%clk 0:02:57]} 13. Be3 {[%clk 0:02:43]}  Bxh3 {[%clk 0:02:32]} 14. Bxb6 {[%clk 0:02:41]}  axb6 {[%clk 0:01:55]} 15. gxh3 {[%clk 0:02:18]}  Nf4 {[%clk 0:01:17]} 16. Nf5 {[%clk 0:02:10]}  g6 {[%clk 0:01:14]} 17. N3h4 {[%clk 0:01:51]}  gxf5 {[%clk 0:01:11]} 18. Nxf5 {[%clk 0:01:52]}  Kh7 {[%clk 0:01:11]} 19. Qf3 {[%clk 0:01:38]}  Rg8+ {[%clk 0:01:10]} 20. Kh1 {[%clk 0:01:35]}  Rg6 {[%clk 0:01:07]} 21. Rg1 {[%clk 0:01:29]}  Rag8 {[%clk 0:00:58]} 22. Rxg6 {[%clk 0:01:13]}  Rxg6 {[%clk 0:00:59]} 23. Rg1 {[%clk 0:01:10]}  d5 {[%clk 0:00:57]} 24. Kh2 {[%clk 0:00:44]}  b5 {[%clk 0:00:53]} 25. Rg3 {[%clk 0:00:32]}  c5 {[%clk 0:00:46]} 26. Nh4 {[%clk 0:00:20]}  Rxg3 {[%clk 0:00:40]} 27. fxg3 {[%clk 0:00:19]}  Qxh3+ {[%clk 0:00:38]} 28. Kg1 {[%clk 0:00:19]}  Ng4 {[%clk 0:00:29]} 29. gxf4 {[%clk 0:00:14]}  Qh2+ {[%clk 0:00:29]} 30. Kf1 {[%clk 0:00:14]}  Qxh4 {[%clk 0:00:30]} 31. exd5 {[%clk 0:00:05]}  Nh2+ {[%clk 0:00:30]} 0-1


[Site "https://www.chess.com"]